fUSD/lending_fUSD_20240204
["ID","MTS","AMOUNT","RATE_DAILY","PERIOD"]
[313249755,1707017443489,-512.0169075,0.00022997,2]
[313249756,1707017443498,-155.22567231,0.00022997,2]
[313249757,1707017443507,-221.99986446,0.00022997,2]
[313249758,1707017443516,-155.29591185,0.00022997,2]
[313249759,1707017443525,-10056.17762344,0.00022997,2]
[313249760,1707017443537,-1347.09854378,0.00022997,2]
[313249761,1707017443548,-17100.70596931,0.00022997,2]
[313249762,1707017443558,-155.30569218,0.00022997,2]
[313249763,1707017443567,-203.71035368,0.00022997,2]
[313249764,1707017443576,-1516.96635245,0.00022997,2]
[313249765,1707017443584,-1561.23906369,0.00022997,2]
[313249766,1707017443593,-833.3767515,0.00022997,2]
[313249767,1707017443602,-527.42735548,0.00022997,2]
[313249768,1707017443611,-199.87069569,0.00022997,2]
[313249769,1707017443621,-1676.68143138,0.00022998,2]
[313249770,1707017443630,-299.10886143,0.00022998,2]
[313249771,1707017443639,-2108.37416921,0.00022998,2]
[313249778,1707017446132,-2622.82219661,0.00022998,2]
[313249779,1707017446240,-170.20900471,0.00022998,2]
[313249780,1707017446250,-258.72904032,0.00022998,2]
[313249781,1707017446259,-252.36468331,0.00022999,2]
[313249782,1707017446270,-345.8142608,0.00022999,2]
[313249783,1707017446282,-2400.64671921,0.00022999,2]
[313249784,1707017446292,-5396.32340581,0.00022999,2]
[313249785,1707017446301,-235.12543263,0.00022999,2]
[313249786,1707017446310,-95.95931846,0.00022999,2]
[313249788,1707017467207,150.0,0.00022,2]
[313249789,1707017474311,150.0,0.00022481,2]
[313249790,1707017526910,151.52,0.00020701,2]
[313249791,1707017533044,176.92,0.00022,2]
[313249792,1707017596994,334.75334893,0.00022447,2]
[313249793,1707017601990,334.75334885,0.00022471,2]
[313249794,1707017606980,334.75334885,0.00022495,2]
[313249795,1707017621616,239.99,0.00022361,2]
[313249796,1707017621842,239.99,0.00022422,2]
[313249797,1707017622067,239.99,0.00022484,2]
[313249798,1707017625575,165.21,0.0002194,2]
[313249799,1707017638734,156.93,0.00021866,2]
[313249800,1707017706864,150.0,0.00022,2]
[313249801,1707017888937,205.43,0.00021918,2]
[313249802,1707017891110,296.24,0.00021746,2]
[313249803,1707017964108,199.36,0.00021752,2]
[313249804,1707017986652,151.52,0.00019834,2]
[313249805,1707017986864,151.52,0.00022224,2]
[313249806,1707017990764,152.99,0.00022404,2]
[313249807,1707018060691,203.99,0.00021948,2]
[313249808,1707018061008,203.99,0.00022009,2]
[313249809,1707018061250,203.99,0.00022069,2]
[313249810,1707018061532,203.99,0.00022129,2]
[313249811,1707018061766,203.99,0.00022189,2]
[313249812,1707018062136,203.99,0.00022249,2]
[313249813,1707018062334,203.99,0.0002231,2]
[313249814,1707018062534,203.99,0.0002237,2]
[313249815,1707018062758,203.99,0.0002243,2]
[313249816,1707018062955,203.99,0.0002249,2]
[313249817,1707018080726,396.75,0.00021752,2]
[313249818,1707018127731,156.93,0.00021746,2]
[313249819,1707018136010,176.92,0.00022,2]
[313249820,1707018321703,153.06786787,0.00022,2]
[313249821,1707018443225,156.0,0.00019838,2]
[313249822,1707018443433,156.0,0.00022228,2]
[313249823,1707018495038,151.39,0.00021964,2]
[313249824,1707018495235,151.39,0.00022046,2]
[313249825,1707018495463,151.39,0.00022127,2]
[313249826,1707018495665,151.39,0.00022209,2]
[313249827,1707018495848,151.39,0.00022291,2]
[313249828,1707018496057,151.39,0.00022373,2]
[313249829,1707018496404,151.39,0.00022454,2]
[313249830,1707018501649,682.6,0.00021848,2]
[313249834,1707018587799,150.0,0.00021918,2]
[313249836,1707018609474,186.23,0.00021805,2]
[313249842,1707018632152,-172.02314401,0.00022517,2]
[313249843,1707018632162,-293.96455444,0.00022518,2]
[313249844,1707018632172,-151.39,0.00022536,2]
[313249846,1707018632181,-293.96455433,0.00022538,2]
[313249847,1707018632190,-150.0,0.00022548,2]
[313249848,1707018632199,-353.56,0.00022548,2]
[313249849,1707018632208,-293.96455433,0.00022558,2]
[313249850,1707018632217,-293.96455433,0.00022578,2]
[313249851,1707018632227,-293.96455433,0.00022598,2]
[313249852,1707018632235,-3309.44,0.00022606,2]
[313249853,1707018632245,-151.39,0.00022618,2]
[313249854,1707018632254,-293.96455433,0.00022619,2]
[313249855,1707018632263,-978.07858618,0.00022628,2]
[313249856,1707018632272,-293.96455433,0.00022639,2]
[313249857,1707018632281,-277.18602932,0.0002264,2]
[313249858,1707018632293,-22.81397068,0.0002264,2]
[313249859,1707018632302,-300.0,0.0002264,3]
[313249860,1707018632311,-135.50321811,0.00022648,2]
[313249861,1707018632322,-353.62981947,0.00022648,2]
[313249862,1707018632334,-1456.18436291,0.00022648,2]
[313249863,1707018632345,-411.68315571,0.00022648,2]
[313249865,1707018632443,-19981.09688542,0.00022648,2]
[313249867,1707018632452,-293.96455433,0.00022659,2]
[313249869,1707018632462,-293.96455433,0.00022679,2]
[313249870,1707018632471,-293.96455433,0.00022699,2]
[313249871,1707018632481,-151.39,0.000227,2]
[313249872,1707018632489,-499.99,0.000227,2]
[313249875,1707018632499,-967.78104716,0.000227,2]
[313249877,1707018632508,-293.96455433,0.00022719,2]
[313249879,1707018632517,-610.66793582,0.00022778,2]
[313249881,1707018632527,-36738.5933,0.00022779,2]
[313249883,1707018632537,-151.39,0.00022781,2]
[313249885,1707018632545,-3042.2454,0.000228,2]
[313249887,1707018632554,-425.498,0.000228,2]
[313249889,1707018632563,-967.78104715,0.000228,2]
[313249891,1707018632572,-2500.0,0.000228,2]
[313249892,1707018632581,-666.23042017,0.000228,2]
[313249893,1707018632591,-151.39,0.00022863,2]
[313249894,1707018632600,-1102.15916704,0.00022877,2]
[313249895,1707018632609,-150.86737056,0.0002289,2]
[313249897,1707018632618,-186.23,0.00022896,2]
[313249899,1707018632627,-113371.80080768,0.000229,2]
[313249902,1707018632646,-499.82864977,0.000229,2]
[313249906,1707018632676,-327.01287504,0.000229,2]
[313249909,1707018632697,-293.96455433,0.00022739,2]
[313249911,1707018632706,-212008.72246751,0.000229,2]
[313249913,1707018632715,-18448.48389086,0.000229,2]
[313249915,1707018632726,-394.61416969,0.000229,2]
[313249917,1707018632737,-51315.89795485,0.000229,2]
[313249921,1707018638292,-293.96455433,0.00022759,2]
[313249922,1707018638301,-100205.3946887,0.000229,2]
[313249923,1707018640777,-1536.12040449,0.000229,2]
[313249924,1707018640832,-4282.63383082,0.000229,2]
[313249925,1707018641571,-1430.18375976,0.000229,2]
[313249926,1707018641584,-14089.96194122,0.000229,2]
[313249927,1707018641625,-751.02933199,0.000229,2]
[313249928,1707018641681,-3658.455,0.000229,2]
[313249937,1707018643336,-293.96455433,0.00022779,2]
[313249938,1707018643345,-7642.22493102,0.000229,2]
[313249939,1707018643496,-41245.0000966,0.000229,2]
[313249940,1707018643505,-1000.0,0.000229,2]
[313249941,1707018643514,-1000.0,0.000229,2]
[313249942,1707018643524,-1000.0,0.000229,2]
[313249943,1707018643533,-1000.0,0.000229,2]
[313249944,1707018643542,-199.6214276,0.000229,6]
[313249945,1707018643551,-355.35735134,0.000229,2]
[313249947,1707018643561,-575.35681988,0.000229,2]
[313249948,1707018643570,-151.39,0.00022945,2]
[313249949,1707018643579,-288.36685,0.00022996,2]
[313249950,1707018643588,-386.3453184,0.00022997,2]
[313249951,1707018643597,-320.76828621,0.00022998,2]
[313249952,1707018643606,-202.9908377,0.00022998,2]
[313249953,1707018643616,-299.35838825,0.00022998,2]
[313249954,1707018643625,-178.71702152,0.00022999,2]
[313249955,1707018643635,-2534.28646304,0.00022999,2]
[313249956,1707018643644,-97260.79518325,0.00022999,2]
[313249957,1707018643653,-2000.0,0.00022999,2]
[313249958,1707018643663,-200.0,0.00022999,2]
[313249959,1707018643672,-2618.99346494,0.00023,3]
[313249960,1707018643682,-214886.08341144,0.00023,2]
[313249961,1707018646473,-255.70541191,0.000229,2]
[313249962,1707018646585,-277.86850724,0.000229,2]
[313249963,1707018646595,-188.00105498,0.00022999,2]
[313249964,1707018646604,-3496.22085943,0.00023,2]
[313249965,1707018646616,-1433.49229833,0.00023,2]
[313249966,1707018646627,-636.82958897,0.00023,2]
[313249967,1707018646639,-1288.17523618,0.00023,2]
[313249982,1707018648851,4534.36965629,0.00021907,2]
[313249983,1707018667987,1000.0,0.000225,2]
[313249984,1707018669935,150.0,0.00022,2]
[313249985,1707018694102,635.31047234,0.00022078,2]
[313249986,1707018718148,1992.32970312,0.00021848,7]
[313249989,1707018738744,176.92,0.00022,2]
[313249990,1707018796491,199.44,0.00022237,2]
[313249991,1707018801727,550.0,0.00022,3]
[313249993,1707018862921,150.06,0.0002032,2]
[313249996,1707018941385,164.06,0.00022367,2]
[313249997,1707018966976,453.92,0.00022262,2]
[313249998,1707019010393,-150.0,0.00022546,2]
[313249999,1707019010413,-29858.78684038,0.00022547,2]
[313250000,1707019010433,-150.0,0.00022548,2]
[313250001,1707019010453,-182.3606794,0.00022548,2]
[313250002,1707019010477,-150.06,0.00022584,2]
[313250003,1707019049364,270.43,0.00022357,2]
[313250004,1707019073442,1505.31683696,0.000226,2]
[313250005,1707019104703,150.0,0.00022357,2]
[313250006,1707019120326,250.0,0.00022407,2]
[313250007,1707019143506,284.99040577,0.000226,2]
[313250008,1707019144598,1983.481476,0.00022586,2]
[313250009,1707019188813,264.12,0.00022353,2]
[313250010,1707019225596,150.0,0.00022595,2]
[313250011,1707019229034,168.65,0.00022397,2]
[313250013,1707019302196,159.48,0.00022351,2]
[313250014,1707019314068,154.57,0.00020434,2]
[313250015,1707019331057,1773.76,0.00022301,2]
[313250016,1707019341457,353.08,0.00022,2]
[313250017,1707019345371,150.45,0.00022301,2]
[313250018,1707019375318,250.0,0.00022238,2]
[313250019,1707019460645,636.86,0.0002237,2]
[313250020,1707019502622,160.34430238,0.00022599,2]
[313250022,1707019566656,180.22,0.00022021,2]
[313250023,1707019583514,208.40693676,0.00022589,2]
[313250024,1707019629765,416.23,0.00021998,2]
[313250025,1707019690323,150.72112676,0.000226,2]
[313250026,1707019716837,150.0,0.00022,2]
[313250027,1707019742936,164.4,0.00020156,2]
[313250028,1707019743120,164.4,0.0002242,2]
[313250039,1707019831392,-160.34430236,0.00022629,2]
[313250040,1707019831401,-136.33645564,0.00022637,2]
[313250041,1707019831447,-36.17354436,0.00022637,2]
[313250042,1707019831456,-1806.02472453,0.00022658,2]
[313250043,1707019831465,-160.34430236,0.00022659,2]
[313250044,1707019831474,-160.34430236,0.00022689,2]
[313250045,1707019831484,-150.0,0.00022698,2]
[313250046,1707019831494,-53841.31399341,0.00022699,2]
[313250047,1707019831510,-321.90484521,0.00022699,2]
[313250048,1707019831523,-562.4996314,0.00022699,2]
[313250049,1707019831612,-1350.28454767,0.00022699,2]
[313250074,1707019837408,-727.11163686,0.00022699,2]
[313250075,1707019837420,-741.27723955,0.00022699,2]
[313250076,1707019837432,-420.8888349,0.00022699,2]
[313250077,1707019837464,-8572.85094754,0.00022699,2]
[313250078,1707019837475,-2861.16401675,0.00022699,2]
[313250079,1707019837519,-12496.5938476,0.00022699,2]
[313250080,1707019837575,-1478.00002489,0.00022699,2]
[313250081,1707019837685,-90046.01470705,0.00022699,2]
[313250082,1707019837697,-1000.0,0.000227,2]
[313250083,1707019837706,-160.34430236,0.00022719,2]
[313250084,1707019837715,-160.34430236,0.0002275,2]
[313250085,1707019837724,-160.34430236,0.0002278,2]
[313250086,1707019837733,-1888.86828909,0.00022798,2]
[313250087,1707019837742,-309.49899878,0.00022798,2]
[313250088,1707019837751,-295.13049519,0.00022798,2]
[313250089,1707019837761,-583.8664,0.000228,2]
[313250090,1707019837772,-22927.25518241,0.000228,2]
[313250091,1707019839916,-321.1046262,0.000228,2]
[313250092,1707019840655,-288.59341171,0.000228,2]
[313250093,1707019840761,-469.30961175,0.000228,2]
[313250094,1707019840817,-8292.89681295,0.000228,2]
[313250095,1707019840828,-860.973,0.000228,2]
[313250096,1707019840872,-13476.81984308,0.000228,2]
[313250125,1707019842568,-305.0,0.000228,2]
[313250126,1707019842675,-4234.51878844,0.000228,2]
[313250128,1707019845646,-500.0,0.000228,2]
[313250129,1707019845660,-3595.21952765,0.000228,2]
[313250132,1707019881321,152.89090886,0.00022,2]
[313250133,1707019881758,490.51,0.00021877,2]
[313250139,1707019926933,156.67379422,0.0002052,2]
[313250140,1707019928639,15398.9137,0.00022599,2]
[313250142,1707019946070,4137.82407604,0.00021866,2]
[313250146,1707020004194,162.21,0.00021875,2]
[313250149,1707020032691,3561.9027,0.000226,2]
[313250151,1707020057999,172.51,0.00022039,2]
[313250152,1707020061936,2000.0,0.00021875,2]
[313250158,1707020165656,166.04,0.00019954,2]
[313250159,1707020165727,166.04,0.00022218,2]
[313250160,1707020266652,4664.81,0.00021875,2]
[313250161,1707020267894,250.0,0.00021918,2]
[313250162,1707020331125,607.59,0.00021873,2]
[313250163,1707020334158,-150.0,0.00022698,2]
[313250164,1707020334183,-63362.41556123,0.00022699,2]
[313250165,1707020334203,-7173.14390489,0.000227,2]
[313250166,1707020334224,-1161.1444,0.000227,2]
[313250167,1707020334245,-1975.9218,0.000227,2]
[313250168,1707020334267,-302.66819454,0.00022734,2]
[313250169,1707020334289,-150.0,0.00022734,2]
[313250170,1707020334311,-150.0,0.00022736,2]
[313250171,1707020334332,-150.0,0.00022737,2]
[313250172,1707020334353,-150.0,0.00022741,2]
[313250173,1707020334376,-150.0,0.00022742,2]
[313250174,1707020334398,-150.0,0.00022744,2]
[313250175,1707020334419,-150.0,0.00022745,2]
[313250176,1707020334443,-150.0,0.00022745,2]
[313250177,1707020334477,-150.0,0.00022747,2]
[313250178,1707020334500,-150.0,0.0002275,2]
[313250179,1707020334523,-150.0,0.00022754,2]
[313250180,1707020334544,-1500.0,0.00022756,2]
[313250181,1707020334568,-150.0,0.00022756,2]
[313250182,1707020334593,-150.0,0.0002276,2]
[313250183,1707020334615,-150.0,0.00022762,2]
[313250184,1707020334826,-150.0,0.00022763,2]
[313250185,1707020334849,-150.0,0.00022769,2]
[313250186,1707020334870,-150.0,0.00022771,2]
[313250187,1707020334890,-300.0,0.0002278,2]
[313250188,1707020334912,-150.0,0.00022784,2]
[313250189,1707020334936,-150.0,0.00022791,2]
[313250190,1707020334958,-306.62791142,0.00022792,2]
[313250191,1707020334978,-332.43761977,0.00022793,2]
[313250192,1707020335000,-150.0,0.00022796,2]
[313250193,1707020335020,-679.83884633,0.00022798,2]
[313250194,1707020335040,-1169.53107752,0.00022798,2]
[313250195,1707020335061,-15862.122,0.000228,2]
[313250196,1707020360935,170.29,0.00021917,2]
[313250197,1707020376976,2182.293,0.000227,2]
[313250198,1707020382946,158.7924324,0.00022719,2]
[313250199,1707020387948,158.79243239,0.00022764,2]
[313250202,1707020441251,53.98081951,0.00021917,2]
[313250203,1707020441271,122.81918049,0.00021917,2]
[313250205,1707020466022,1058.3,0.00021917,2]
[313250206,1707020594591,183.3,0.00021901,2]
[313250207,1707020605668,165.71,0.00019983,2]
[313250208,1707020605878,165.71,0.00022247,2]
[313250209,1707020608538,550.0,0.00022,3]
[313250210,1707020654246,-150.0,0.00022726,2]
[313250211,1707020654269,-1204.01648302,0.00022727,2]
[313250212,1707020654290,-1204.01648302,0.00022727,2]
[313250213,1707020654310,-1204.01648302,0.00022727,2]
[313250214,1707020654331,-1204.01648302,0.00022727,2]
[313250215,1707020654353,-1204.01648302,0.00022727,2]
[313250216,1707020654373,-1204.01648302,0.00022727,2]
[313250217,1707020654397,-150.0,0.00022728,2]
[313250218,1707020654417,-150.0,0.00022729,2]
[313250219,1707020654437,-150.0,0.00022734,2]
[313250220,1707020654458,-300.0,0.00022739,2]
[313250221,1707020654479,-1500.0,0.00022743,2]
[313250222,1707020654500,-150.0,0.00022751,2]
[313250223,1707020654520,-150.0,0.00022757,2]
[313250224,1707020654541,-150.0,0.00022761,2]
[313250225,1707020654564,-150.0,0.00022777,2]
[313250226,1707020654586,-150.0,0.00022787,2]
[313250227,1707020654609,-150.0,0.00022789,2]
[313250228,1707020654632,-150.0,0.0002279,2]
[313250229,1707020654657,-150.0,0.00022796,2]
[313250230,1707020654680,-150.0,0.00022798,2]
[313250231,1707020654702,-158.79243239,0.0002281,2]
[313250232,1707020654726,-800.0,0.00022816,2]
[313250233,1707020654749,-150.0,0.00022824,2]
[313250234,1707020654771,-150.0,0.00022826,2]
[313250235,1707020654793,-1500.0,0.00022834,2]
[313250236,1707020654817,-150.0,0.00022839,2]
[313250237,1707020654838,-150.0,0.0002284,2]
[313250238,1707020654864,-181.76636839,0.00022844,2]
[313250239,1707020654886,-150.0,0.00022848,2]
[313250240,1707020654909,-150.0,0.00022851,2]
[313250241,1707020654931,-150.0,0.00022853,2]
[313250242,1707020654955,-158.79243239,0.00022855,2]
[313250243,1707020654978,-150.0,0.00022855,2]
[313250244,1707020654999,-150.45,0.00022859,2]
[313250245,1707020655022,-150.0,0.00022863,2]
[313250246,1707020655044,-150.0,0.00022865,2]
[313250247,1707020655067,-150.0,0.00022866,2]
[313250248,1707020655088,-150.0,0.0002287,2]
[313250249,1707020655110,-150.0,0.0002288,2]
[313250250,1707020655131,-150.0,0.00022881,2]
[313250251,1707020655152,-32838.129,0.00022882,2]
[313250252,1707020655174,-150.0,0.00022884,2]
[313250253,1707020655195,-150.0,0.00022888,2]
[313250254,1707020655216,-150.0,0.0002289,2]
[313250255,1707020655236,-150.0,0.00022892,2]
[313250256,1707020655257,-150.0,0.00022892,2]
[313250257,1707020655278,-199.825732,0.00022899,2]
[313250258,1707020655299,-593.2866,0.000229,2]
[313250259,1707020655322,-773.82724969,0.000229,2]
[313250260,1707020655345,-1000.0,0.000229,2]
[313250261,1707020655366,-5000.0,0.000229,2]
[313250262,1707020655388,-69119.8103,0.000229,2]
[313250263,1707020655411,-158.79243239,0.000229,2]
[313250264,1707020655434,-157.28459607,0.000229,2]
[313250265,1707020655460,-1081.83354702,0.000229,2]
[313250266,1707020655482,-1500.0,0.000229,2]
[313250267,1707020655505,-283.10015873,0.000229,2]
[313250268,1707020655524,-641.71402238,0.000229,2]
[313250269,1707020655544,-508.49927956,0.000229,2]
[313250270,1707020655565,-580.05162994,0.000229,2]
[313250271,1707020655588,-159.69714208,0.000229,6]
[313250272,1707020655611,-150.0,0.00022901,2]
[313250273,1707020655632,-154.10860528,0.00022901,2]
[313250274,1707020655656,-150.0,0.00022905,2]
[313250275,1707020655681,-167.0,0.00022909,2]
[313250276,1707020655703,-150.0,0.00022912,2]
[313250277,1707020655727,-1532.78491593,0.00022912,2]
[313250278,1707020655751,-150.0,0.00022914,2]
[313250279,1707020655773,-150.0,0.00022915,2]
[313250280,1707020655795,-150.0,0.00022916,2]
[313250281,1707020655818,-150.0,0.00022925,2]
[313250282,1707020655841,-150.0,0.00022925,2]
[313250283,1707020655864,-150.0,0.00022931,2]
[313250284,1707020655887,-150.0,0.00022937,2]
[313250285,1707020655908,-150.0,0.0002294,2]
[313250286,1707020655931,-150.0,0.00022941,2]
[313250287,1707020655954,-152.70598456,0.00022949,2]
[313250288,1707020655978,-150.0,0.00022949,2]
[313250289,1707020656001,-150.0,0.0002295,2]
[313250290,1707020656023,-150.0,0.00022952,2]
[313250291,1707020656044,-150.0,0.00022954,2]
[313250292,1707020656064,-150.0,0.00022957,2]
[313250293,1707020656092,-150.0,0.00022958,2]
[313250294,1707020656113,-150.0,0.00022964,2]
[313250295,1707020656134,-150.0,0.00022964,2]
[313250296,1707020656157,-150.0,0.00022965,2]
[313250297,1707020656179,-150.0,0.00022971,2]
[313250298,1707020656201,-150.0,0.00022973,2]
[313250299,1707020656222,-150.0,0.00022973,2]
[313250300,1707020656243,-1500.0,0.00022978,2]
[313250301,1707020656265,-420.65248789,0.00022987,2]
[313250302,1707020656284,-150.86737058,0.0002299,2]
[313250303,1707020656304,-150.0,0.0002299,2]
[313250304,1707020656325,-150.0,0.0002299,2]
[313250305,1707020656345,-150.0,0.00022991,2]
[313250306,1707020656366,-150.0,0.00022991,2]
[313250307,1707020656387,-150.0,0.00022994,2]
[313250308,1707020656407,-211.29826058,0.00022998,2]
[313250309,1707020656431,-150.84407626,0.00022999,2]
[313250310,1707020656452,-645.0288456,0.00022999,2]
[313250311,1707020656475,-24211.62626939,0.00023,3]
[313250312,1707020656499,-1247983.33136278,0.00023,2]
[313250313,1707020776528,206.73222473,0.00022,2]
[313250321,1707021025346,270.87975987,0.00022,2]
[313250346,1707021031564,-522.74382305,0.00022898,2]
[313250348,1707021031574,-300.0,0.00022899,2]
[313250349,1707021031583,-5000.0,0.000229,2]
[313250351,1707021031592,-188.73343914,0.000229,2]
[313250352,1707021031601,-508.49927955,0.000229,2]
[313250353,1707021031610,-427.80934826,0.000229,2]
[313250354,1707021031620,-34958.49775195,0.000229,2]
[313250355,1707021031632,-2838.89453252,0.000229,2]
[313250356,1707021031647,-474.01370317,0.000229,2]
[313250357,1707021031659,-343.98687081,0.000229,2]
[313250358,1707021031671,-3800.0,0.000229,2]
[313250359,1707021031780,-954.01451178,0.000229,2]
[313250360,1707021031792,-299.42368159,0.000229,2]
[313250375,1707021037586,-45559.35894818,0.000229,2]
[313250376,1707021037596,-6094.68,0.000229,2]
[313250377,1707021037608,-171.17051916,0.00022998,2]
[313250378,1707021037618,-2117.44926124,0.00022998,2]
[313250379,1707021037628,-162.6040385,0.00022998,2]
[313250380,1707021037638,-350.67562916,0.00022998,2]
[313250381,1707021037651,-203.41535885,0.00022998,2]
[313250382,1707021037660,-12008.20447394,0.00022999,2]
[313250383,1707021037670,-472.80896673,0.00022999,2]
[313250384,1707021037681,-294.10258849,0.00022999,2]
[313250385,1707021037690,-522.84651929,0.00022999,2]
[313250386,1707021037699,-12105.8131347,0.00023,3]
[313250387,1707021037709,-860854.74430785,0.00023,2]
[313250388,1707021037718,-133495.00270057,0.00023,2]
[313250389,1707021037727,-332406.15764157,0.00023,2]
[313250390,1707021037736,-134385.89719544,0.00023,2]
[313250391,1707021037748,-1015.1999988,0.00023,2]
[313250392,1707021037765,-360.35948943,0.00023,2]
[313250393,1707021037776,-3627.95124371,0.00023,2]
[313250394,1707021037787,-953.64757487,0.00023,2]
[313250395,1707021037813,-926.63689892,0.00023,2]
[313250396,1707021037870,-19596.04983241,0.00023,2]
[313250397,1707021037881,-635.96349285,0.00023,2]
[313250398,1707021037981,-2260.37551083,0.00023,2]
[313250490,1707021040121,-1612.60638186,0.00023,2]
[313250491,1707021040132,-9245.30500987,0.00023,2]
[313250492,1707021040143,-13657.09547427,0.00023,2]
[313250493,1707021040154,-322.59596735,0.00023,2]
[313250494,1707021040165,-370.78286728,0.00023,2]
[313250495,1707021040180,-37519.2684082,0.00023,2]
[313250496,1707021040238,-530.83065272,0.00023,2]
[313250497,1707021040914,-312.14320097,0.00023,2]
[313250498,1707021040926,-23706.53013667,0.00023,2]
[313250499,1707021040938,-507.76928861,0.00023,2]
[313250500,1707021040949,-601.05792827,0.00023,2]
[313250501,1707021040997,-1070.276403,0.00023,2]
[313250502,1707021041009,-389.78396793,0.00023,2]
[313250503,1707021041020,-1071.865,0.00023,2]
[313250504,1707021041032,-574.25801573,0.00023,2]
[313250505,1707021041063,-541.05532265,0.00023,2]
[313250512,1707021042596,-265.45389965,0.00023,2]
[313250513,1707021042608,-696.05985471,0.00023,2]
[313250514,1707021042619,-692.9072365,0.00023,2]
[313250515,1707021042837,-293.33957425,0.00023,2]
[313250516,1707021042852,-668.90572478,0.00023,2]
[313250517,1707021042864,-1449.54671138,0.00023,2]
[313250518,1707021042875,-345.93150222,0.00023,2]
[313250519,1707021042887,-1515.01903168,0.00023,2]
[313250521,1707021042898,-23109.77164381,0.00023,2]
[313250619,1707021046863,-386.70108662,0.000229,2]
[313250620,1707021046873,-480.60324616,0.00022999,2]
[313250621,1707021046882,-62694.90596741,0.00023,2]
[313250622,1707021046898,-14723.9746968,0.00023,2]
[313250623,1707021046909,-1974.57483297,0.00023,2]
[313250624,1707021046924,-428.4901055,0.00023,2]
[313250626,1707021116291,184.05,0.00017832,2]
[313250627,1707021186627,162.5,0.00022407,2]
[313250628,1707021209085,774.24888691,0.00022407,2]
[313250629,1707021223088,1486.08231653,0.00022407,2]
[313250630,1707021245120,774.24888691,0.00022407,2]
[313250631,1707021263086,774.24888691,0.00022407,2]
[313250632,1707021267107,486.08,0.00022041,2]
[313250633,1707021279096,774.24888691,0.00022407,2]
[313250634,1707021297084,774.24888691,0.00022407,2]
[313250635,1707021315096,774.24888691,0.00022407,2]
[313250636,1707021333105,774.24888691,0.00022407,2]
[313250637,1707021349287,774.24888691,0.00022407,2]
[313250638,1707021367118,774.24888691,0.00022407,2]
[313250639,1707021383115,774.24888691,0.00022407,2]
[313250640,1707021405115,774.24888691,0.00022407,2]
[313250641,1707021421114,774.24888691,0.00022407,2]
[313250642,1707021437133,774.24888691,0.00022407,2]
[313250643,1707021455126,774.24888691,0.00022407,2]
[313250644,1707021459815,174.24,0.00021956,2]
[313250645,1707021464660,1346.64,0.0002196,2]
[313250646,1707021466321,202.5,0.00020042,2]
[313250647,1707021466516,202.5,0.00022306,2]
[313250648,1707021473130,774.24888691,0.0002196,2]
[313250649,1707021491127,774.24888691,0.0002196,2]
[313250650,1707021494732,174.76,0.00021977,2]
[313250651,1707021507132,774.24888691,0.0002196,2]
[313250652,1707021531266,212.50977133,0.0002196,2]
[313250653,1707021547766,155.43,0.00021978,2]
[313250654,1707021613615,163.08,0.00022137,2]
[313250655,1707021613825,163.08,0.00022252,2]
[313250656,1707021614030,163.08,0.00022368,2]
[313250657,1707021614244,163.08,0.00022483,2]
[313250658,1707021728886,611.13,0.00021965,2]